[Event "*** Titled Tuesday Blitz"]
[Site "Chess.com"]
[Date "2020.12.29"]
[Round "6"]
[White "FMOlexandrProhorov"]
[Black "DinaBelenkaya"]
[Result "0-1"]
[WhiteElo "2148"]
[BlackElo "2391"]
[TimeControl "180+1"]
[EndTime "11:06:53 PST"]
[Termination "DinaBelenkaya won by resignation"]

1. Nf3 {[%clk 0:03:00.9]} 1... d5 {[%clk 0:02:59.9]} 2. d4 {[%clk 0:02:58.3]}
2... Nf6 {[%clk 0:02:58.3]} 3. c4 {[%clk 0:02:58.9]} 3... dxc4 {[%clk
0:02:59.2]} 4. Nc3 {[%clk 0:02:55.3]} 4... a6 {[%clk 0:02:57.1]} 5. a4 {[%clk
0:02:51.9]} 5... Nc6 {[%clk 0:02:56.3]} 6. e4 {[%clk 0:02:49.4]} 6... Na5 {[%clk
0:02:55.3]} 7. Bg5 {[%clk 0:02:42.3]} 7... Bg4 {[%clk 0:02:47.7]} 8. Be2 {[%clk
0:02:39.5]} 8... Bxf3 {[%clk 0:02:45.5]} 9. Bxf3 {[%clk 0:02:38.9]} 9... Nb3
{[%clk 0:02:45.7]} 10. Be3 {[%clk 0:02:05.7]} 10... Nxa1 {[%clk 0:02:43.9]} 11.
Qxa1 {[%clk 0:02:06.6]} 11... e5 {[%clk 0:02:42.7]} 12. dxe5 {[%clk 0:01:59.8]}
12... Nd7 {[%clk 0:02:42.4]} 13. e6 {[%clk 0:01:48.5]} 13... fxe6 {[%clk
0:02:43.3]} 14. O-O {[%clk 0:01:47.6]} 14... Bc5 {[%clk 0:02:29.4]} 15. Bxc5
{[%clk 0:01:32]} 15... Nxc5 {[%clk 0:02:30.3]} 16. Qa3 {[%clk 0:01:31.8]} 16...
Qe7 {[%clk 0:02:22.5]} 17. Qb4 {[%clk 0:01:30.3]} 17... O-O {[%clk 0:02:13.8]}
18. Qxc4 {[%clk 0:01:29.5]} 18... Rad8 {[%clk 0:02:09.3]} 19. Be2 {[%clk
0:01:21.4]} 19... Rd2 {[%clk 0:02:03.2]} 20. b4 {[%clk 0:01:17.4]} 20... Nxa4
{[%clk 0:01:38]} 21. Nxa4 {[%clk 0:01:13.3]} 21... b5 {[%clk 0:01:38.1]} 22. Qc3
{[%clk 0:01:07.8]} 22... Rxe2 {[%clk 0:01:36.9]} 23. Nc5 {[%clk 0:01:08.4]}
23... Qf6 {[%clk 0:01:11.3]} 24. Qg3 {[%clk 0:01:01.2]} 24... Rf7 {[%clk
0:01:00]} 25. f3 {[%clk 0:00:56.9]} 25... Qd4+ {[%clk 0:00:59.2]} 26. Kh1 {[%clk
0:00:55.7]} 26... Qxb4 {[%clk 0:00:58.9]} 27. Nxe6 {[%clk 0:00:54.2]} 27... Qc4
{[%clk 0:00:56.4]} 28. Ng5 {[%clk 0:00:52.2]} 28... Rc2 {[%clk 0:00:54.3]} 29.
Qe1 {[%clk 0:00:44.9]} 29... Rd7 {[%clk 0:00:53.7]} 30. e5 {[%clk 0:00:40.7]}
30... Rdd2 {[%clk 0:00:50]} 31. Rg1 {[%clk 0:00:40.4]} 31... Re2 {[%clk
0:00:48.7]} 32. Qg3 {[%clk 0:00:31.8]} 32... Rc1 {[%clk 0:00:45.8]} 33. h4
{[%clk 0:00:30.4]} 33... Rxg1+ {[%clk 0:00:45.1]} 34. Kxg1 {[%clk 0:00:31.3]}
34... Qd4+ {[%clk 0:00:43.5]} 35. Kh2 {[%clk 0:00:31.1]} 35... Qxe5 {[%clk
0:00:44.1]} 36. f4 {[%clk 0:00:31.3]} 36... Qe7 {[%clk 0:00:35.6]} 37. Qb3+
{[%clk 0:00:29.8]} 37... Kf8 {[%clk 0:00:32.1]} 38. Nxh7+ {[%clk 0:00:27.1]}
38... Ke8 {[%clk 0:00:30.2]} 39. Qg8+ {[%clk 0:00:27.4]} 39... Kd7 {[%clk
0:00:30.2]} 40. Qd5+ {[%clk 0:00:27.8]} 40... Qd6 {[%clk 0:00:22]} 41. Qf7+
{[%clk 0:00:27.3]} 41... Kc6 {[%clk 0:00:21.7]} 42. Ng5 {[%clk 0:00:26.3]} 42...
Qd5 {[%clk 0:00:20]} 43. Qg6+ {[%clk 0:00:20.4]} 43... Kb7 {[%clk 0:00:19.8]}
44. Nf7 {[%clk 0:00:18]} 44... b4 {[%clk 0:00:14.2]} 45. Qxg7 {[%clk 0:00:17.5]}
45... b3 {[%clk 0:00:12.3]} 46. h5 {[%clk 0:00:10.6]} 46... Qxg2+ {[%clk
0:00:12.2]} 47. Qxg2+ {[%clk 0:00:09.7]} 47... Rxg2+ {[%clk 0:00:13.1]} 48. Kxg2
{[%clk 0:00:10.1]} 48... b2 {[%clk 0:00:14]} 49. h6 {[%clk 0:00:10.4]} 49...
b1=Q {[%clk 0:00:14.9]} 50. Ng5 {[%clk 0:00:09.2]} 50... Qg6 {[%clk 0:00:13.5]}
51. h7 {[%clk 0:00:08.2]} 51... Qg7 {[%clk 0:00:13.8]} 52. Kf3 {[%clk
0:00:07.9]} 52... a5 {[%clk 0:00:14.1]} 53. Kg4 {[%clk 0:00:06.5]} 53... a4
{[%clk 0:00:14.3]} 54. f5 {[%clk 0:00:07.1]} 54... a3 {[%clk 0:00:14.1]} 55. Kh5
{[%clk 0:00:05.8]} 55... a2 {[%clk 0:00:14.1]} 56. Ne6 {[%clk 0:00:05.5]} 56...
Qxh7+ {[%clk 0:00:13.2]} 0-1

[Event "*** Titled Tuesday Blitz"]
[Site "Chess.com"]
[Date "2020.12.29"]
[Round "6"]
[White "Keures"]
[Black "MasterKroket"]
[Result "0-1"]
[WhiteElo "2329"]
[BlackElo "2468"]
[TimeControl "180+1"]
[EndTime "11:06:55 PST"]
[Termination "MasterKroket won by resignation"]

1. d4 {[%clk 0:03:00.9]} 1... Nf6 {[%clk 0:02:59.8]} 2. c4 {[%clk 0:03:00.6]}
2... e6 {[%clk 0:03:00]} 3. Nc3 {[%clk 0:02:53.5]} 3... Bb4 {[%clk 0:03:00.2]}
4. e3 {[%clk 0:02:53.4]} 4... O-O {[%clk 0:02:59.9]} 5. Bd3 {[%clk 0:02:53.3]}
5... c5 {[%clk 0:02:58.5]} 6. Ne2 {[%clk 0:02:48.6]} 6... d5 {[%clk 0:02:55.5]}
7. dxc5 {[%clk 0:02:45.1]} 7... dxc4 {[%clk 0:02:54.3]} 8. Bxc4 {[%clk
0:02:44.9]} 8... Qxd1+ {[%clk 0:02:52.9]} 9. Kxd1 {[%clk 0:02:45.2]} 9... Bxc5
{[%clk 0:02:52.4]} 10. h3 {[%clk 0:02:43.4]} 10... a6 {[%clk 0:02:50.9]} 11. a3
{[%clk 0:02:43]} 11... b5 {[%clk 0:02:51]} 12. Bd3 {[%clk 0:02:39.3]} 12... Rd8
{[%clk 0:02:49.9]} 13. Kc2 {[%clk 0:02:37.4]} 13... Nc6 {[%clk 0:02:49.3]} 14.
Ne4 {[%clk 0:02:29.9]} 14... Be7 {[%clk 0:02:43.5]} 15. Bd2 {[%clk 0:02:22.8]}
15... Bb7 {[%clk 0:02:41.5]} 16. Nxf6+ {[%clk 0:02:19.5]} 16... Bxf6 {[%clk
0:02:40.1]} 17. Bc3 {[%clk 0:02:20.1]} 17... Bxc3 {[%clk 0:02:27.1]} 18. Nxc3
{[%clk 0:02:18]} 18... Ne5 {[%clk 0:02:27.5]} 19. Be4 {[%clk 0:02:09.8]} 19...
Bxe4+ {[%clk 0:02:23.9]} 20. Nxe4 {[%clk 0:02:10.7]} 20... Rac8+ {[%clk
0:02:22.1]} 21. Nc3 {[%clk 0:02:01.1]} 21... a5 {[%clk 0:02:21.3]} 22. Rad1
{[%clk 0:01:55.9]} 22... Rxd1 {[%clk 0:02:16.7]} 23. Kxd1 {[%clk 0:01:53.2]}
23... b4 {[%clk 0:02:17.1]} 24. axb4 {[%clk 0:01:52.2]} 24... axb4 {[%clk
0:02:18]} 25. Na4 {[%clk 0:01:44.6]} 25... Nd3 {[%clk 0:02:14.5]} 26. Ke2 {[%clk
0:01:33.3]} 26... Nxb2 {[%clk 0:02:14.5]} 27. Nxb2 {[%clk 0:01:32.6]} 27... Rc2+
{[%clk 0:02:14.6]} 28. Kd3 {[%clk 0:01:14.7]} 28... Rxb2 {[%clk 0:02:14.9]} 29.
Rc1 {[%clk 0:01:15.2]} 29... g5 {[%clk 0:02:10.8]} 30. Rc2 {[%clk 0:01:15.2]}
30... Rb1 {[%clk 0:02:02]} 31. Ke4 {[%clk 0:01:10.2]} 31... Kg7 {[%clk
0:01:59.8]} 32. Rc5 {[%clk 0:01:05.6]} 32... h6 {[%clk 0:01:51.7]} 33. Rb5
{[%clk 0:01:01.2]} 33... Rb2 {[%clk 0:01:50.3]} 34. Kf3 {[%clk 0:01:00.9]} 34...
f5 {[%clk 0:01:45.9]} 35. g4 {[%clk 0:00:58.8]} 35... Kf6 {[%clk 0:01:39.2]} 36.
Kg3 {[%clk 0:00:58.2]} 36... b3 {[%clk 0:01:28.7]} 37. Kf3 {[%clk 0:00:52.3]}
37... fxg4+ {[%clk 0:01:23.5]} 38. hxg4 {[%clk 0:00:51.6]} 38... Rb1 {[%clk
0:01:21.4]} 39. Ke4 {[%clk 0:00:50.5]} 39... b2 {[%clk 0:01:08.2]} 40. f3 {[%clk
0:00:50.5]} 40... Ke7 {[%clk 0:01:05.2]} 41. Rb6 {[%clk 0:00:46]} 41... Kd7
{[%clk 0:01:04]} 42. Rb3 {[%clk 0:00:44.4]} 42... Kd6 {[%clk 0:01:00.9]} 43.
Rb6+ {[%clk 0:00:42.7]} 43... Kc5 {[%clk 0:01:00.6]} 44. Rb8 {[%clk 0:00:42.7]}
44... Kc4 {[%clk 0:00:59.8]} 45. Rc8+ {[%clk 0:00:31.5]} 45... Kb3 {[%clk
0:00:59.5]} 46. Rb8+ {[%clk 0:00:31.4]} 46... Kc2 {[%clk 0:00:59.5]} 47. Rc8+
{[%clk 0:00:31]} 47... Kd2 {[%clk 0:00:59.6]} 48. Rb8 {[%clk 0:00:28.7]} 48...
Ke2 {[%clk 0:00:58.2]} 49. Rb6 {[%clk 0:00:18.3]} 49... Kf2 {[%clk 0:00:57.7]}
50. Rb5 {[%clk 0:00:17.7]} 50... Kg3 {[%clk 0:00:57.7]} 51. Rb6 {[%clk
0:00:17.3]} 51... Rf1 {[%clk 0:00:54.5]} 52. Rxb2 {[%clk 0:00:17.2]} 52... Rxf3
{[%clk 0:00:53.6]} 53. Rb6 {[%clk 0:00:17]} 53... Rf6 {[%clk 0:00:44.9]} 54. Ke5
{[%clk 0:00:16]} 54... Rg6 {[%clk 0:00:44.8]} 55. Rb4 {[%clk 0:00:13.8]} 55...
Kh4 {[%clk 0:00:41.4]} 56. Re4 {[%clk 0:00:11.2]} 56... h5 {[%clk 0:00:40.6]}
57. gxh5+ {[%clk 0:00:11.1]} 57... Kxh5 {[%clk 0:00:41.5]} 58. Kd6 {[%clk
0:00:11.5]} 58... g4 {[%clk 0:00:41.4]} 59. Rf4 {[%clk 0:00:09.1]} 59... g3
{[%clk 0:00:41.4]} 60. Rf1 {[%clk 0:00:09.1]} 60... g2 {[%clk 0:00:41.8]} 61.
Rg1 {[%clk 0:00:09.6]} 61... Kh4 {[%clk 0:00:42.4]} 62. e4 {[%clk 0:00:10]}
62... Kh3 {[%clk 0:00:42.3]} 63. e5 {[%clk 0:00:09.3]} 63... Kh2 {[%clk
0:00:42.2]} 64. Rxg2+ {[%clk 0:00:07.2]} 64... Kxg2 {[%clk 0:00:43.1]} 65. Ke7
{[%clk 0:00:07.9]} 65... Kf3 {[%clk 0:00:42.9]} 66. Kf7 {[%clk 0:00:08.8]} 66...
Rh6 {[%clk 0:00:42.5]} 67. Kg7 {[%clk 0:00:09.1]} 67... Rh5 {[%clk 0:00:41.5]}
68. Kf6 {[%clk 0:00:08.9]} 68... Ke4 {[%clk 0:00:41.8]} 69. Kxe6 {[%clk
0:00:09.2]} 69... Rxe5+ {[%clk 0:00:42.1]} 0-1

[Event "*** Titled Tuesday Blitz"]
[Site "Chess.com"]
[Date "2020.12.29"]
[Round "6"]
[White "Leonid_Starozhilov"]
[Black "TokChess"]
[Result "1-0"]
[WhiteElo "2635"]
[BlackElo "2469"]
[TimeControl "180+1"]
[EndTime "11:06:56 PST"]
[Termination "Leonid_Starozhilov won on time"]

1. c4 {[%clk 0:03:00.9]} 1... Nf6 {[%clk 0:02:59.6]} 2. Nc3 {[%clk 0:03:00.7]}
2... c6 {[%clk 0:02:59.5]} 3. Nf3 {[%clk 0:02:58.8]} 3... d6 {[%clk 0:03:00.1]}
4. g3 {[%clk 0:02:58.5]} 4... Nbd7 {[%clk 0:03:01]} 5. Bg2 {[%clk 0:02:58.9]}
5... e5 {[%clk 0:03:01.9]} 6. O-O {[%clk 0:02:59.5]} 6... Be7 {[%clk 0:03:02.8]}
7. Rb1 {[%clk 0:02:59.8]} 7... O-O {[%clk 0:03:03.4]} 8. b4 {[%clk 0:02:59.8]}
8... Re8 {[%clk 0:03:03.1]} 9. b5 {[%clk 0:03:00.1]} 9... Qc7 {[%clk 0:03:02.9]}
10. d3 {[%clk 0:02:58.4]} 10... Nc5 {[%clk 0:03:01.3]} 11. Ba3 {[%clk
0:02:55.8]} 11... Ne6 {[%clk 0:02:55]} 12. Nd2 {[%clk 0:02:51.9]} 12... Bd7
{[%clk 0:02:52.2]} 13. bxc6 {[%clk 0:02:45.9]} 13... bxc6 {[%clk 0:02:51.2]} 14.
Qa4 {[%clk 0:02:40]} 14... Reb8 {[%clk 0:02:41.8]} 15. e3 {[%clk 0:02:18.5]}
15... Ne8 {[%clk 0:02:09]} 16. Rxb8 {[%clk 0:01:58.8]} 16... Rxb8 {[%clk
0:02:08.5]} 17. Rb1 {[%clk 0:01:59.3]} 17... Rxb1+ {[%clk 0:01:57.9]} 18. Ndxb1
{[%clk 0:01:59.5]} 18... Bd8 {[%clk 0:01:52.3]} 19. Nd2 {[%clk 0:01:44.3]} 19...
f5 {[%clk 0:01:31.6]} 20. Qb3 {[%clk 0:01:42.5]} 20... Qb6 {[%clk 0:01:26.3]}
21. Na4 {[%clk 0:01:27.8]} 21... Qxb3 {[%clk 0:01:25.9]} 22. axb3 {[%clk
0:01:16.3]} 22... c5 {[%clk 0:01:11.3]} 23. Nb1 {[%clk 0:01:02.6]} 23... Ba5
{[%clk 0:01:05.7]} 24. Kf1 {[%clk 0:01:01.1]} 24... N8c7 {[%clk 0:01:05]} 25.
Ke2 {[%clk 0:00:58.3]} 25... Kf8 {[%clk 0:01:03.6]} 26. Nbc3 {[%clk 0:00:57.2]}
26... Ke7 {[%clk 0:01:01.8]} 27. f4 {[%clk 0:00:50.4]} 27... exf4 {[%clk
0:00:51.4]} 28. gxf4 {[%clk 0:00:50.5]} 28... g6 {[%clk 0:00:46.9]} 29. Nd5+
{[%clk 0:00:37.6]} 29... Nxd5 {[%clk 0:00:46.6]} 30. Bxd5 {[%clk 0:00:36.6]}
30... Nc7 {[%clk 0:00:46.6]} 31. Bf3 {[%clk 0:00:30.6]} 31... Ne6 {[%clk
0:00:34.4]} 32. Bb2 {[%clk 0:00:27.1]} 32... Nd8 {[%clk 0:00:32.8]} 33. Nc3
{[%clk 0:00:20.2]} 33... Bxc3 {[%clk 0:00:31.4]} 34. Bxc3 {[%clk 0:00:21.1]}
34... Bc6 {[%clk 0:00:31]} 35. e4 {[%clk 0:00:17.4]} 35... Ne6 {[%clk
0:00:27.7]} 36. Ke3 {[%clk 0:00:17.6]} 36... Kd7 {[%clk 0:00:21.6]} 37. Bf6
{[%clk 0:00:10.9]} 37... a6 {[%clk 0:00:21.6]} 38. h4 {[%clk 0:00:11.1]} 38...
Nc7 {[%clk 0:00:20.5]} 39. exf5 {[%clk 0:00:09.2]} 39... gxf5 {[%clk 0:00:19.2]}
40. Bh5 {[%clk 0:00:09.1]} 40... Ke6 {[%clk 0:00:18.5]} 41. Bc3 {[%clk
0:00:08.5]} 41... Be8 {[%clk 0:00:18.4]} 42. Bf3 {[%clk 0:00:08.1]} 42... Bd7
{[%clk 0:00:13.2]} 43. b4 {[%clk 0:00:07.8]} 43... Ne8 {[%clk 0:00:08.6]} 44. d4
{[%clk 0:00:07.9]} 44... cxd4+ {[%clk 0:00:07.3]} 45. Bxd4 {[%clk 0:00:08.2]}
45... Nf6 {[%clk 0:00:07.5]} 46. Bb7 {[%clk 0:00:06.5]} 46... Ng4+ {[%clk
0:00:07.9]} 47. Kd2 {[%clk 0:00:06.5]} 47... Nh2 {[%clk 0:00:05.3]} 48. Bxa6
{[%clk 0:00:06]} 48... Nf3+ {[%clk 0:00:05.5]} 49. Kc3 {[%clk 0:00:05.9]} 49...
Nxh4 {[%clk 0:00:05.7]} 50. b5 {[%clk 0:00:05.8]} 50... Ng2 {[%clk 0:00:03.6]}
51. b6 {[%clk 0:00:06.2]} 51... Bc6 {[%clk 0:00:02.4]} 52. Bb5 {[%clk
0:00:03.8]} 1-0

[Event "*** Titled Tuesday Blitz"]
[Site "Chess.com"]
[Date "2020.12.29"]
[Round "6"]
[White "Blitzking642"]
[Black "MuhittinBuker"]
[Result "1-0"]
[WhiteElo "2298"]
[BlackElo "2112"]
[TimeControl "180+1"]
[EndTime "11:06:56 PST"]
[Termination "Blitzking642 won on time"]

1. e4 {[%clk 0:03:00.9]} 1... e5 {[%clk 0:02:59.1]} 2. Nf3 {[%clk 0:03:00.4]}
2... Nc6 {[%clk 0:02:59.4]} 3. Bc4 {[%clk 0:02:59.9]} 3... Nf6 {[%clk
0:02:58.4]} 4. d3 {[%clk 0:02:59.3]} 4... Bc5 {[%clk 0:02:57.8]} 5. c3 {[%clk
0:02:58.7]} 5... a6 {[%clk 0:02:57.8]} 6. O-O {[%clk 0:02:58.2]} 6... d6 {[%clk
0:02:56.2]} 7. Bb3 {[%clk 0:02:57.6]} 7... h6 {[%clk 0:02:55.1]} 8. Re1 {[%clk
0:02:47.5]} 8... O-O {[%clk 0:02:54.5]} 9. Nbd2 {[%clk 0:02:43.4]} 9... Be6
{[%clk 0:02:54.8]} 10. Nf1 {[%clk 0:02:37.9]} 10... Bxb3 {[%clk 0:02:54.2]} 11.
Qxb3 {[%clk 0:02:32.4]} 11... Rb8 {[%clk 0:02:54.5]} 12. Ng3 {[%clk 0:02:30.3]}
12... Ng4 {[%clk 0:02:48.9]} 13. Re2 {[%clk 0:02:28]} 13... Kh7 {[%clk
0:02:33.3]} 14. h3 {[%clk 0:02:27.8]} 14... Nf6 {[%clk 0:02:32.3]} 15. Nf5
{[%clk 0:02:28.1]} 15... Ng8 {[%clk 0:02:30.3]} 16. d4 {[%clk 0:02:23.2]} 16...
Bb6 {[%clk 0:02:23.2]} 17. Be3 {[%clk 0:02:13.4]} 17... g6 {[%clk 0:02:21.7]}
18. Ng3 {[%clk 0:02:13.8]} 18... Nf6 {[%clk 0:02:14.6]} 19. Rd1 {[%clk
0:02:05.2]} 19... Qe7 {[%clk 0:02:13.7]} 20. dxe5 {[%clk 0:02:04.6]} 20... dxe5
{[%clk 0:01:54]} 21. Bxb6 {[%clk 0:02:03.1]} 21... cxb6 {[%clk 0:01:53.1]} 22.
Qxb6 {[%clk 0:02:03.5]} 22... Rfd8 {[%clk 0:01:49.9]} 23. Red2 {[%clk
0:02:02.2]} 23... Rxd2 {[%clk 0:01:49.3]} 24. Rxd2 {[%clk 0:02:03.1]} 24... Kg7
{[%clk 0:01:44.1]} 25. b4 {[%clk 0:01:53]} 25... h5 {[%clk 0:01:42.9]} 26. Qe3
{[%clk 0:01:43.3]} 26... Rd8 {[%clk 0:01:39.3]} 27. Rxd8 {[%clk 0:01:42]} 27...
Qxd8 {[%clk 0:01:38.4]} 28. Qd2 {[%clk 0:01:42.3]} 28... Qxd2 {[%clk 0:01:37.4]}
29. Nxd2 {[%clk 0:01:41.9]} 29... h4 {[%clk 0:01:35.3]} 30. Ngf1 {[%clk
0:01:40]} 30... Kf8 {[%clk 0:01:20.3]} 31. Ne3 {[%clk 0:01:39.5]} 31... Ke7
{[%clk 0:01:19.1]} 32. Kf1 {[%clk 0:01:32.7]} 32... Ke6 {[%clk 0:01:17.8]} 33.
Ke2 {[%clk 0:01:15.4]} 33... Nh5 {[%clk 0:01:15.6]} 34. Nf3 {[%clk 0:01:15.2]}
34... Nf4+ {[%clk 0:01:15.6]} 35. Kd2 {[%clk 0:01:15.3]} 35... f6 {[%clk
0:00:53.6]} 36. Nxh4 {[%clk 0:01:15.1]} 36... Ne7 {[%clk 0:00:48.7]} 37. Nf3
{[%clk 0:01:14]} 37... f5 {[%clk 0:00:43.9]} 38. Ng5+ {[%clk 0:01:10.9]} 38...
Kf6 {[%clk 0:00:43]} 39. h4 {[%clk 0:01:09.6]} 39... Ne6 {[%clk 0:00:21.5]} 40.
Nxe6 {[%clk 0:00:56.8]} 40... Kxe6 {[%clk 0:00:21.4]} 41. f3 {[%clk 0:00:52.8]}
41... f4 {[%clk 0:00:19]} 42. Nc4 {[%clk 0:00:45.8]} 42... Nc6 {[%clk
0:00:16.2]} 43. a4 {[%clk 0:00:43.3]} 43... Nb8 {[%clk 0:00:09.9]} 44. a5 {[%clk
0:00:41]} 44... Nd7 {[%clk 0:00:10.2]} 45. Ke2 {[%clk 0:00:39.5]} 45... Nf6
{[%clk 0:00:09.8]} 46. Kf2 {[%clk 0:00:37.3]} 46... Nh5 {[%clk 0:00:09.6]} 47.
Nb6 {[%clk 0:00:37.5]} 47... Ng3 {[%clk 0:00:07.9]} 48. Nd5 {[%clk 0:00:38]}
48... Nh1+ {[%clk 0:00:06.5]} 49. Ke1 {[%clk 0:00:35]} 49... Ng3 {[%clk
0:00:06.3]} 50. c4 {[%clk 0:00:32.5]} 50... Nh5 {[%clk 0:00:05.6]} 51. b5 {[%clk
0:00:30.5]} 51... axb5 {[%clk 0:00:02.4]} 52. cxb5 {[%clk 0:00:31.4]} 52... Kd6
{[%clk 0:00:01.7]} 53. a6 {[%clk 0:00:23.6]} 53... bxa6 {[%clk 0:00:01.4]} 54.
bxa6 {[%clk 0:00:24.5]} 54... Kc6 {[%clk 0:00:01.5]} 55. Ne7+ {[%clk 0:00:24.8]}
55... Kb6 {[%clk 0:00:01.4]} 56. Nxg6 {[%clk 0:00:25.1]} 56... Kxa6 {[%clk
0:00:01.1]} 57. Nxe5 {[%clk 0:00:25.5]} 57... Kb6 {[%clk 0:00:01.8]} 58. Kd2
{[%clk 0:00:21.1]} 58... Kc5 {[%clk 0:00:02.1]} 59. Kd3 {[%clk 0:00:20.2]} 59...
Kd6 {[%clk 0:00:01.8]} 60. Kd4 {[%clk 0:00:20.7]} 60... Ke6 {[%clk 0:00:01.6]}
61. Nd3 {[%clk 0:00:19.4]} 1-0

[Event "*** Titled Tuesday Blitz"]
[Site "Chess.com"]
[Date "2020.12.29"]
[Round "6"]
[White "Supernotar"]
[Black "Natalya_Buksa"]
[Result "1-0"]
[WhiteElo "2851"]
[BlackElo "2540"]
[TimeControl "180+1"]
[EndTime "11:06:59 PST"]
[Termination "Supernotar won by resignation"]

1. d4 {[%clk 0:03:00.9]} 1... d5 {[%clk 0:02:59.9]} 2. c4 {[%clk 0:03:00.8]}
2... e6 {[%clk 0:03:00.4]} 3. Nf3 {[%clk 0:03:00.5]} 3... Nf6 {[%clk 0:03:00.5]}
4. e3 {[%clk 0:03:00.7]} 4... a6 {[%clk 0:02:59]} 5. Nbd2 {[%clk 0:03:00.8]}
5... dxc4 {[%clk 0:02:52]} 6. Bxc4 {[%clk 0:02:59.4]} 6... b5 {[%clk 0:02:52.4]}
7. Be2 {[%clk 0:02:59.2]} 7... Bb7 {[%clk 0:02:52.6]} 8. a4 {[%clk 0:02:58.8]}
8... Be7 {[%clk 0:02:42.2]} 9. axb5 {[%clk 0:02:54.9]} 9... O-O {[%clk
0:02:42.1]} 10. bxa6 {[%clk 0:02:49.8]} 10... Nxa6 {[%clk 0:02:41.8]} 11. O-O
{[%clk 0:02:47.9]} 11... Nb4 {[%clk 0:02:41.3]} 12. Rxa8 {[%clk 0:02:45.9]}
12... Qxa8 {[%clk 0:02:41.7]} 13. b3 {[%clk 0:02:43]} 13... Rd8 {[%clk 0:02:34]}
14. Bb2 {[%clk 0:02:41]} 14... c5 {[%clk 0:02:33.9]} 15. Qa1 {[%clk 0:02:33.7]}
15... Bd5 {[%clk 0:02:08.4]} 16. Qxa8 {[%clk 0:02:27.5]} 16... Rxa8 {[%clk
0:02:09.3]} 17. Ra1 {[%clk 0:02:23.8]} 17... Rb8 {[%clk 0:02:02]} 18. Kf1 {[%clk
0:02:20.4]} 18... h6 {[%clk 0:02:01.1]} 19. dxc5 {[%clk 0:02:18.6]} 19... Bxc5
{[%clk 0:02:00.2]} 20. Rc1 {[%clk 0:02:14.5]} 20... Be7 {[%clk 0:01:52.3]} 21.
Nd4 {[%clk 0:02:10.7]} 21... Bd6 {[%clk 0:01:22.6]} 22. h3 {[%clk 0:02:03.2]}
22... Nd7 {[%clk 0:01:21.5]} 23. f3 {[%clk 0:02:00.9]} 23... Na2 {[%clk
0:01:09.8]} 24. Ra1 {[%clk 0:01:58.9]} 24... Bb4 {[%clk 0:01:09.5]} 25. Rxa2
{[%clk 0:01:48.8]} 25... Bxd2 {[%clk 0:01:09.5]} 26. e4 {[%clk 0:01:48.2]} 26...
Bxb3 {[%clk 0:01:01.4]} 27. Nxb3 {[%clk 0:01:47.9]} 27... Rxb3 {[%clk
0:01:01.9]} 28. Bd1 {[%clk 0:01:42.6]} 28... Re3 {[%clk 0:00:56.4]} 29. Kf2
{[%clk 0:01:39.5]} 29... Nc5 {[%clk 0:00:46]} 30. Bd4 {[%clk 0:01:09.9]} 30...
Nd3+ {[%clk 0:00:45.6]} 31. Kg3 {[%clk 0:01:07.6]} 31... Re1 {[%clk 0:00:29.8]}
32. Rxd2 {[%clk 0:01:04.8]} 32... Nc1 {[%clk 0:00:30.1]} 33. Bf2 {[%clk
0:00:59]} 33... Rh1 {[%clk 0:00:29.7]} 34. Bc2 {[%clk 0:00:56.7]} 34... g5
{[%clk 0:00:13.3]} 35. Be3 {[%clk 0:00:50.4]} 35... Kg7 {[%clk 0:00:12.1]} 36.
Kf2 {[%clk 0:00:48.4]} 36... f5 {[%clk 0:00:10.1]} 37. exf5 {[%clk 0:00:45.8]}
37... exf5 {[%clk 0:00:10]} 38. Rd1 {[%clk 0:00:39.9]} 38... Rxd1 {[%clk
0:00:08.2]} 39. Bxd1 {[%clk 0:00:40.8]} 39... Nd3+ {[%clk 0:00:08.4]} 40. Ke2
{[%clk 0:00:39.8]} 40... Nb4 {[%clk 0:00:07.2]} 41. Bb3 {[%clk 0:00:37.9]} 41...
Nc6 {[%clk 0:00:05.6]} 42. Bd5 {[%clk 0:00:36.7]} 42... Ne7 {[%clk 0:00:05.7]}
43. Ba2 {[%clk 0:00:35.5]} 43... f4 {[%clk 0:00:04.7]} 44. Bd4+ {[%clk
0:00:35.1]} 44... Kg6 {[%clk 0:00:04.6]} 45. Bc5 {[%clk 0:00:33.3]} 45... Nc6
{[%clk 0:00:04.4]} 46. Bb1+ {[%clk 0:00:32]} 46... Kh5 {[%clk 0:00:04.1]} 47.
Be4 {[%clk 0:00:27.5]} 47... Ne5 {[%clk 0:00:04.4]} 48. Bd4 {[%clk 0:00:24.7]}
48... Nc4 {[%clk 0:00:04.4]} 49. Bd5 {[%clk 0:00:23.1]} 49... Nd6 {[%clk
0:00:04.6]} 50. Bc5 {[%clk 0:00:20.1]} 50... Nf5 {[%clk 0:00:04.7]} 51. Bf7+
{[%clk 0:00:20.1]} 51... Kh4 {[%clk 0:00:05.1]} 52. Bf2+ {[%clk 0:00:19.7]}
52... Ng3+ {[%clk 0:00:05.7]} 53. Bxg3+ {[%clk 0:00:18.4]} 53... Kxg3 {[%clk
0:00:05.2]} 54. Kf1 {[%clk 0:00:18.8]} 54... Kh4 {[%clk 0:00:05.4]} 55. Kf2
{[%clk 0:00:18.5]} 55... h5 {[%clk 0:00:05.9]} 56. Be6 {[%clk 0:00:18]} 56... g4
{[%clk 0:00:04.4]} 57. hxg4 {[%clk 0:00:18.2]} 57... hxg4 {[%clk 0:00:04.1]} 58.
Bxg4 {[%clk 0:00:18.3]} 58... Kg5 {[%clk 0:00:04.3]} 59. g3 {[%clk 0:00:18.9]}
59... fxg3+ {[%clk 0:00:03.3]} 60. Kxg3 {[%clk 0:00:19.8]} 60... Kf6 {[%clk
0:00:04]} 61. f4 {[%clk 0:00:20.4]} 1-0